lending/lending_fUSD_20250808
["ID","MTS","AMOUNT","RATE_DAILY","PERIOD"]
[378018580,1754669470954,-400.0,0.00019217,2]
[378018581,1754669470963,-400.0,0.00019217,2]
[378018582,1754669470972,-582.38,0.00019217,2]
[378018583,1754669470982,-832.82,0.00019217,2]
[378018584,1754669470991,-400.0,0.00019217,2]
[378018585,1754669471000,-730.78,0.00019217,2]
[378018586,1754669471010,-978.87,0.00019217,2]
[378018587,1754669471019,-859.46,0.00019217,2]
[378018588,1754669471028,-1294.52,0.00019217,2]
[378018589,1754669471037,-400.0,0.00019217,2]
[378018590,1754669471046,-400.0,0.00019217,2]
[378018591,1754669471056,-1018.54,0.00019217,2]
[378018592,1754669471065,-169.03323893,0.00019217,2]
[378018593,1754669471074,-595.29,0.00019217,2]
[378018594,1754669471085,-670.33,0.00019217,2]
[378018595,1754669471095,-400.0,0.00019217,2]
[378018596,1754669471105,-400.0,0.00019217,2]
[378018597,1754669471114,-400.0,0.00019217,2]
[378018598,1754669471123,-410.61,0.00019217,2]
[378018599,1754669471133,-1685.44,0.00019217,2]
[378018600,1754669471143,-504.11,0.00019217,2]
[378018601,1754669471152,-400.07,0.00019217,2]
[378018602,1754669471164,-4814.45,0.00019217,2]
[378018603,1754669471173,-400.0,0.00019217,2]
[378018604,1754669471183,-475.53,0.00019217,2]
[378018605,1754669471192,-715.42,0.00019217,2]
[378018606,1754669471201,-400.0,0.00019217,2]
[378018607,1754669471210,-601.22,0.00019217,2]
[378018608,1754669471220,-155.776285,0.00019217,2]
[378018609,1754669471231,-400.0,0.00019217,2]
[378018610,1754669471242,-586.59,0.00019217,2]
[378018611,1754669471252,-1231.15,0.00019217,2]
[378018612,1754669471262,-552.5,0.00019217,2]
[378018613,1754669471273,-152.542267,0.00019217,2]
[378018614,1754669471283,-2455.66,0.00019217,2]
[378018615,1754669471292,-1053.85,0.00019217,2]
[378018616,1754669471302,-224.907018,0.00019217,2]
[378018617,1754669471311,-905.25,0.00019217,2]
[378018618,1754669471321,-2834.45,0.00019217,2]
[378018619,1754669471331,-400.0,0.00019217,2]
[378018620,1754669471341,-1433.1,0.00019217,2]
[378018621,1754669471350,-1066.3,0.00019217,2]
[378018622,1754669471359,-1410.13,0.00019217,2]
[378018623,1754669471368,-288.11,0.00019217,2]
[378018624,1754669471378,-944.36,0.00019217,2]
[378018625,1754669471387,-518.56,0.00019217,2]
[378018626,1754669471395,-1050.54,0.00019217,2]
[378018627,1754669471404,-754.73,0.00019217,2]
[378018628,1754669471413,-591.08,0.00019217,2]
[378018629,1754669471422,-466.61,0.00019217,2]
[378018630,1754669471431,-1107.48,0.00019217,2]
[378018631,1754669471441,-469.73,0.00019217,2]
[378018632,1754669471450,-400.0,0.00019217,2]
[378018633,1754669471459,-3687.73,0.00019217,2]
[378018634,1754669471469,-531.1,0.00019217,2]
[378018635,1754669471478,-490.29,0.00019217,2]
[378018636,1754669471487,-834.33,0.00019217,2]
[378018637,1754669471496,-667.47,0.00019217,2]
[378018638,1754669471506,-3938.15,0.00019217,2]
[378018639,1754669471516,-2574.42,0.00019217,2]
[378018640,1754669471527,-1036.67,0.00019217,2]
[378018641,1754669471537,-1800.54,0.00019217,2]
[378018642,1754669471546,-3054.85,0.00019217,2]
[378018643,1754669471556,-1006.77,0.00019217,2]
[378018644,1754669471565,-1025.22,0.00019217,2]
[378018645,1754669471574,-1520.44,0.00019217,2]
[378018646,1754669471584,-640.9,0.00019217,2]
[378018647,1754669471594,-1142.56,0.00019217,2]
[378018648,1754669471604,-621.81,0.00019217,2]
[378018649,1754669471614,-4083.5,0.00019217,2]
[378018650,1754669471624,-568.41,0.00019217,2]
[378018651,1754669471634,-524.35,0.00019217,2]
[378018652,1754669471643,-1661.41,0.00019217,2]
[378018653,1754669471654,-1298.89,0.00019217,2]
[378018654,1754669471664,-400.0,0.00019217,2]
[378018655,1754669471673,-2454.24,0.00019217,2]
[378018656,1754669471684,-541.43,0.00019217,2]
[378018657,1754669471697,-540.08,0.00019217,2]
[378018658,1754669471708,-831.09,0.00019217,2]
[378018659,1754669471718,-3674.86,0.00019217,2]
[378018660,1754669471728,-2558.52,0.00019217,2]
[378018661,1754669471738,-400.0,0.00019217,2]
[378018662,1754669471748,-770.46,0.00019217,2]
[378018663,1754669471757,-931.41,0.00019217,2]
[378018664,1754669471767,-1046.41,0.00019217,2]
[378018665,1754669471779,-2675.43,0.00019217,2]
[378018666,1754669471788,-825.25,0.00019217,2]
[378018667,1754669471798,-4347.41,0.00019217,2]
[378018668,1754669471808,-6608.06,0.00019217,2]
[378018669,1754669471818,-1150.05,0.00019217,2]
[378018670,1754669471827,-400.0,0.00019218,2]
[378018671,1754669471837,-400.0,0.00019218,2]
[378018672,1754669471846,-400.0,0.00019218,2]
[378018673,1754669471856,-400.0,0.00019218,2]
[378018674,1754669471866,-400.0,0.00019218,2]
[378018675,1754669471876,-458.84,0.00019218,2]
[378018676,1754669471886,-1117.67,0.00019218,2]
[378018677,1754669471895,-421.41,0.00019218,2]
[378018678,1754669471905,-515.38,0.00019218,2]
[378018679,1754669471915,-1006.42,0.00019218,2]
[378018680,1754669471925,-400.0,0.00019218,2]
[378018681,1754669471935,-1001.32,0.00019218,2]
[378018682,1754669471945,-416.27,0.00019218,2]
[378018683,1754669471954,-400.0,0.00019218,2]
[378018684,1754669471964,-431.24,0.00019218,2]
[378018685,1754669471973,-400.0,0.00019218,2]
[378018686,1754669471984,-968.12,0.00019218,2]
[378018687,1754669471993,-531.71,0.00019218,2]
[378018688,1754669472003,-400.0,0.00019218,2]
[378018689,1754669472014,-402.79,0.00019218,2]
[378018690,1754669472026,-400.0,0.00019218,2]
[378018691,1754669472037,-237.51,0.00019218,2]
[378018692,1754669472048,-839.4,0.00019218,2]
[378018693,1754669472058,-400.0,0.00019218,2]
[378018694,1754669472068,-413.42,0.00019218,2]
[378018695,1754669472079,-595.6,0.00019218,2]
[378018696,1754669472090,-400.0,0.00019218,2]
[378018697,1754669472101,-1000.0,0.00019218,2]
[378018698,1754669472112,-728.4,0.00019218,2]
[378018699,1754669472125,-244.33,0.00019218,2]
[378018700,1754669472135,-457.06,0.00019218,2]
[378018701,1754669472146,-400.0,0.00019218,2]
[378018702,1754669472156,-426.5,0.00019218,2]
[378018703,1754669472166,-234.56,0.00019218,2]
[378018704,1754669472176,-2865.41,0.00019218,2]
[378018705,1754669472187,-400.0,0.00019218,2]
[378018706,1754669472197,-400.0,0.00019218,2]
[378018707,1754669472206,-433.99,0.00019218,2]
[378018708,1754669472216,-1025.98,0.00019218,2]
[378018709,1754669472228,-578.59,0.00019218,2]
[378018710,1754669472238,-400.0,0.00019218,2]
[378018711,1754669472247,-568.96,0.00019218,2]
[378018712,1754669472257,-400.0,0.00019218,2]
[378018713,1754669472267,-400.0,0.00019218,2]
[378018714,1754669472276,-1746.19,0.00019218,2]
[378018715,1754669472286,-400.0,0.00019218,2]
[378018716,1754669472296,-244.99073312,0.00019218,2]
[378018717,1754669472306,-868.12,0.00019218,2]
[378018718,1754669472316,-583.5,0.00019218,2]
[378018719,1754669472325,-400.0,0.00019218,2]
[378018720,1754669472335,-511.52,0.00019218,2]
[378018721,1754669472345,-976.11,0.00019218,2]
[378018722,1754669472355,-400.0,0.00019218,2]
[378018723,1754669472365,-782.74,0.00019218,2]
[378018724,1754669472375,-326.95346271,0.00019218,2]
[378018725,1754669472385,-528.81,0.00019218,2]
[378018726,1754669472395,-400.0,0.00019218,2]
[378018727,1754669472405,-400.0,0.00019218,2]
[378018728,1754669472415,-400.0,0.00019218,2]
[378018729,1754669472425,-971.0,0.00019218,2]
[378018730,1754669472435,-400.0,0.00019218,2]
[378018731,1754669472446,-497.24,0.00019218,2]
[378018732,1754669472456,-1328.31,0.00019218,2]
[378018733,1754669472466,-400.0,0.00019218,2]
[378018734,1754669472476,-288.14,0.00019218,2]
[378018735,1754669472486,-492.66,0.00019218,2]
[378018736,1754669472495,-400.0,0.00019218,2]
[378018737,1754669472505,-400.0,0.00019218,2]
[378018738,1754669472515,-400.0,0.00019218,2]
[378018739,1754669472525,-400.0,0.00019218,2]
[378018740,1754669472534,-536.48,0.00019218,2]
[378018741,1754669472544,-400.0,0.00019218,2]
[378018742,1754669472554,-1060.74,0.00019218,2]
[378018743,1754669472563,-400.0,0.00019218,2]
[378018744,1754669472573,-400.0,0.00019218,2]
[378018745,1754669472582,-857.42,0.00019218,2]
[378018746,1754669472592,-400.0,0.00019218,2]
[378018747,1754669472602,-400.0,0.00019218,2]
[378018748,1754669472612,-1331.55,0.00019218,2]
[378018749,1754669472621,-625.23,0.00019218,2]
[378018750,1754669472631,-400.0,0.00019218,2]
[378018751,1754669472641,-453.72,0.00019218,2]
[378018752,1754669472651,-425.8,0.00019218,2]
[378018753,1754669472661,-287.8,0.00019218,2]
[378018754,1754669472671,-400.0,0.00019218,2]
[378018755,1754669472680,-596.31,0.00019218,2]
[378018756,1754669472691,-538.89,0.00019218,2]
[378018757,1754669472706,-402.64,0.00019218,2]
[378018758,1754669472717,-400.0,0.00019218,2]
[378018759,1754669472727,-400.0,0.00019218,2]
[378018760,1754669472737,-1320.59,0.00019218,2]
[378018761,1754669472748,-400.0,0.00019218,2]
[378018762,1754669472757,-502.89,0.00019218,2]
[378018763,1754669472767,-908.21,0.00019218,2]
[378018764,1754669472778,-364.18,0.00019218,2]
[378018765,1754669472789,-896.71,0.00019218,2]
[378018766,1754669472799,-400.0,0.00019218,2]
[378018767,1754669472808,-400.0,0.00019218,2]
[378018768,1754669472818,-545.38,0.00019218,2]
[378018769,1754669472828,-400.0,0.00019218,2]
[378018770,1754669472838,-420.23,0.00019218,2]
[378018771,1754669472848,-3958.88,0.00019218,2]
[378018772,1754669472858,-234.22,0.00019218,2]
[378018773,1754669472868,-265.56,0.00019218,2]
[378018774,1754669472878,-486.29,0.00019218,2]
[378018775,1754669472888,-868.76,0.00019218,2]
[378018776,1754669472898,-400.0,0.00019218,2]
[378018777,1754669472908,-400.0,0.00019218,2]
[378018778,1754669472918,-400.0,0.00019218,2]
[378018779,1754669472927,-400.0,0.00019218,2]
[378018780,1754669472937,-496.3,0.00019218,2]
[378018781,1754669472948,-544.9,0.00019218,2]
[378018782,1754669472958,-525.45,0.00019218,2]
[378018783,1754669472967,-788.21,0.00019218,2]
[378018784,1754669472977,-400.0,0.00019218,2]
[378018785,1754669472987,-491.6,0.00019218,2]
[378018786,1754669472996,-1540.06,0.00019218,2]
[378018787,1754669473006,-151.0,0.00019218,2]
[378018788,1754669473016,-400.0,0.00019218,2]
[378018789,1754669473026,-1676.13,0.00019218,2]
[378018790,1754669473036,-400.0,0.00019218,2]
[378018791,1754669473046,-400.0,0.00019218,2]
[378018792,1754669473055,-406.38,0.00019218,2]
[378018793,1754669473066,-400.0,0.00019218,2]
[378018794,1754669473076,-400.0,0.00019218,2]
[378018795,1754669473085,-1543.92,0.00019218,2]
[378018796,1754669473095,-1771.46,0.00019218,2]
[378018797,1754669473105,-1276.24,0.00019218,2]
[378018798,1754669473115,-1834.76,0.00019218,2]
[378018799,1754669473124,-910.98,0.00019218,2]
[378018800,1754669473134,-526.59,0.00019218,2]
[378018801,1754669473144,-400.0,0.00019218,2]
[378018802,1754669473154,-151.0,0.00019218,2]
[378018803,1754669473164,-400.0,0.00019218,2]
[378018804,1754669473174,-404.83,0.00019218,2]
[378018805,1754669473184,-1444.29,0.00019218,2]
[378018806,1754669473194,-615.62,0.00019218,2]
[378018807,1754669473204,-1214.78,0.00019218,2]
[378018808,1754669473214,-400.0,0.00019218,2]
[378018809,1754669473226,-400.0,0.00019218,2]
[378018810,1754669473237,-1013.06,0.00019218,2]
[378018811,1754669473247,-497.84,0.00019218,2]
[378018812,1754669473257,-410.74,0.00019218,2]
[378018813,1754669473267,-400.0,0.00019218,2]
[378018814,1754669473277,-671.65,0.00019218,2]
[378018815,1754669473287,-3405.28,0.00019218,2]
[378018816,1754669473298,-460.1,0.00019218,2]
[378018817,1754669473310,-400.0,0.00019218,2]
[378018818,1754669473321,-420.14,0.00019218,2]
[378018819,1754669473334,-833.41,0.00019218,2]
[378018820,1754669473344,-400.0,0.00019218,2]
[378018821,1754669473354,-1142.08,0.00019218,2]
[378018822,1754669473364,-400.0,0.00019218,2]
[378018823,1754669473374,-777.18,0.00019218,2]
[378018824,1754669473385,-1516.44,0.00019218,2]
[378018825,1754669473397,-454.23,0.00019218,2]
[378018826,1754669473407,-151.0,0.00019218,2]
[378018827,1754669473417,-400.0,0.00019218,2]
[378018828,1754669473427,-1407.46,0.00019218,2]
[378018829,1754669473437,-4624.2,0.00019218,2]
[378018830,1754669473447,-151.0,0.00019218,2]
[378018831,1754669473456,-151.0,0.00019218,2]
[378018832,1754669473467,-400.0,0.00019218,2]
[378018833,1754669473476,-1458.34,0.00019218,2]
[378018834,1754669473489,-1220.89,0.00019218,2]
[378018835,1754669473500,-422.1,0.00019218,2]
[378018836,1754669473511,-151.0,0.00019218,2]
[378018837,1754669473521,-686.63,0.00019218,2]
[378018838,1754669473530,-1283.29,0.00019218,2]
[378018839,1754669473540,-1271.52,0.00019218,2]
[378018840,1754669473550,-400.0,0.00019218,2]
[378018841,1754669473559,-469.19,0.00019218,2]
[378018842,1754669473569,-400.0,0.00019218,2]
[378018843,1754669473579,-151.0,0.00019218,2]
[378018844,1754669473590,-1531.74,0.00019218,2]
[378018845,1754669473600,-1320.06,0.00019218,2]
[378018846,1754669473609,-466.82,0.00019218,2]
[378018847,1754669473619,-1421.75,0.00019218,2]
[378018848,1754669473629,-455.48,0.00019218,2]
[378018849,1754669473639,-894.63,0.00019218,2]
[378018850,1754669473649,-400.0,0.00019218,2]
[378018851,1754669473659,-400.0,0.00019218,2]
[378018852,1754669473670,-995.6,0.00019218,2]
[378018853,1754669473884,-400.0,0.00019218,2]
[378018854,1754669473894,-675.46,0.00019218,2]
[378018855,1754669473904,-943.62,0.00019218,2]
[378018856,1754669473916,-3181.7,0.00019218,2]
[378018857,1754669473926,-400.0,0.00019218,2]
[378018858,1754669473935,-577.69,0.00019218,2]
[378018859,1754669473944,-400.0,0.00019218,2]
[378018860,1754669473954,-474.82,0.00019218,2]
[378018861,1754669473964,-3907.01,0.00019218,2]
[378018862,1754669473974,-151.0,0.00019218,2]
[378018863,1754669473983,-400.0,0.00019218,2]
[378018864,1754669473992,-400.0,0.00019218,2]
[378018865,1754669474003,-447.25,0.00019218,2]
[378018866,1754669474012,-4881.55,0.00019218,2]
[378018867,1754669474022,-400.0,0.00019218,2]
[378018868,1754669474033,-400.0,0.00019218,2]
[378018869,1754669474043,-3961.85,0.00019218,2]
[378018870,1754669474053,-548.2,0.00019218,2]
[378018871,1754669474062,-607.19,0.00019218,2]
[378018872,1754669474071,-1995.27,0.00019218,2]
[378018873,1754669474081,-400.0,0.00019218,2]
[378018874,1754669474091,-400.0,0.00019218,2]
[378018875,1754669474101,-1748.15,0.00019218,2]
[378018876,1754669474111,-2151.79,0.00019218,2]
[378018877,1754669474120,-1071.34,0.00019218,2]
[378018878,1754669474132,-5556.86,0.00019218,2]
[378018879,1754669474142,-776.47,0.00019218,2]
[378018880,1754669474153,-4368.67,0.00019218,2]
[378018881,1754669474162,-400.0,0.00019218,2]
[378018882,1754669474173,-455.24,0.00019218,2]
[378018883,1754669474182,-454.28,0.00019218,2]
[378018884,1754669474191,-400.0,0.00019218,2]
[378018885,1754669474201,-400.0,0.00019218,2]
[378018886,1754669474211,-572.22,0.00019218,2]
[378018887,1754669474220,-1655.65,0.00019218,2]
[378018888,1754669474230,-552.11,0.00019218,2]
[378018889,1754669474240,-5326.54,0.00019218,2]
[378018890,1754669474249,-1353.03,0.00019218,2]
[378018891,1754669474258,-400.0,0.00019218,2]
[378018892,1754669474268,-400.0,0.00019218,2]
[378018893,1754669474277,-1787.09,0.00019218,2]
[378018894,1754669474287,-437.4,0.00019218,2]
[378018895,1754669474297,-400.0,0.00019218,2]
[378018896,1754669474307,-1818.29,0.00019218,2]
[378018897,1754669474316,-448.37,0.00019218,2]
[378018898,1754669474325,-400.0,0.00019218,2]
[378018899,1754669474335,-151.0,0.00019218,2]
[378018900,1754669474345,-1169.93,0.00019218,2]
[378018901,1754669474354,-3083.31,0.00019218,2]
[378018902,1754669474364,-156.926249,0.00019218,2]
[378018903,1754669474375,-2127.79,0.00019218,2]
[378018904,1754669474385,-509.83,0.00019218,2]
[378018905,1754669474395,-400.0,0.00019218,2]
[378018906,1754669474405,-400.0,0.00019218,2]
[378018907,1754669474415,-836.42,0.00019218,2]
[378018908,1754669474424,-740.05,0.00019218,2]
[378018909,1754669474434,-1017.06,0.00019218,2]
[378018910,1754669474446,-400.0,0.00019218,2]
[378018911,1754669474456,-3318.81,0.00019218,2]
[378018912,1754669474465,-1132.27,0.00019218,2]
[378018913,1754669474475,-1001.22,0.00019218,2]
[378018914,1754669474485,-501.43,0.00019218,2]
[378018915,1754669474496,-633.86,0.00019218,2]
[378018916,1754669474505,-471.36,0.00019218,2]
[378018917,1754669474515,-862.04,0.00019218,2]
[378018918,1754669474525,-1748.49,0.00019218,2]
[378018919,1754669474535,-400.0,0.00019218,2]
[378018920,1754669474544,-2373.25,0.00019218,2]
[378018921,1754669474554,-1280.13,0.00019218,2]
[378018922,1754669474564,-1010.24,0.00019218,2]
[378018923,1754669474573,-1499.55,0.00019218,2]
[378018924,1754669474583,-1166.4,0.00019218,2]
[378018925,1754669474593,-154.200704,0.00019218,2]
[378018926,1754669474603,-660.66,0.00019218,2]
[378018927,1754669474612,-7523.23,0.00019218,2]
[378018928,1754669474622,-1342.86,0.00019218,2]
[378018929,1754669474632,-247.952829,0.00019218,2]
[378018930,1754669474642,-591.38,0.00019218,2]
[378018931,1754669474652,-400.0,0.00019218,2]
[378018932,1754669474662,-439.65,0.00019218,2]
[378018933,1754669474672,-1524.08,0.00019218,2]
[378018934,1754669474681,-151.0,0.00019218,2]
[378018935,1754669474691,-247.952829,0.00019218,2]
[378018936,1754669474704,-400.0,0.00019218,2]
[378018937,1754669474714,-809.05,0.00019218,2]
[378018938,1754669474723,-151.0,0.00019218,2]
[378018939,1754669474733,-400.0,0.00019218,2]
[378018940,1754669474743,-5829.92,0.00019218,2]
[378018941,1754669474753,-1761.37,0.00019218,2]
[378018942,1754669474762,-1610.05,0.00019218,2]
[378018943,1754669474773,-248.52,0.00019218,2]
[378018944,1754669474782,-755.11,0.00019218,2]
[378018945,1754669474791,-643.37,0.00019218,2]
[378018946,1754669474801,-764.46,0.00019218,2]
[378018947,1754669474811,-985.59,0.00019218,2]
[378018948,1754669474820,-4533.75,0.00019218,2]
[378018949,1754669474829,-543.79,0.00019218,2]
[378018950,1754669474839,-1461.07,0.00019218,2]
[378018951,1754669474849,-577.86,0.00019218,2]
[378018952,1754669474859,-1394.99,0.00019218,2]
[378018953,1754669474868,-3292.99,0.00019218,2]
[378018954,1754669474878,-745.45,0.00019218,2]
[378018955,1754669474889,-630.01,0.00019218,2]
[378018956,1754669474898,-591.75,0.00019218,2]
[378018957,1754669474908,-400.0,0.00019218,2]
[378018958,1754669474917,-1002.257171,0.00019218,2]
[378018959,1754669474927,-400.0,0.00019218,2]
[378018960,1754669474936,-571.59,0.00019218,2]
[378018961,1754669474947,-1002.257171,0.00019218,2]
[378018962,1754669474957,-1230.51,0.00019218,2]
[378018963,1754669474966,-1458.03,0.00019218,2]
[378018964,1754669474976,-244.76,0.00019218,2]
[378018965,1754669474986,-922.39,0.00019218,2]
[378018966,1754669474996,-5116.24,0.00019218,2]
[378018967,1754669475006,-400.0,0.00019218,2]
[378018968,1754669475016,-1077.25,0.00019218,2]
[378018969,1754669475025,-1973.55,0.00019218,2]
[378018970,1754669475035,-888.02,0.00019218,2]
[378018971,1754669475044,-400.0,0.00019218,2]
[378018972,1754669475054,-1296.8,0.00019218,2]
[378018973,1754669475063,-510.38,0.00019218,2]
[378018974,1754669475073,-1075.57,0.00019218,2]
[378018975,1754669475082,-572.6,0.00019218,2]
[378018976,1754669475092,-5597.06,0.00019218,2]
[378018977,1754669475101,-638.9,0.00019218,2]
[378018978,1754669475111,-400.0,0.00019218,2]
[378018979,1754669475120,-450.68,0.00019218,2]
[378018980,1754669475130,-533.21,0.00019218,2]
[378018981,1754669475139,-663.4,0.00019218,2]
[378018982,1754669475148,-3288.41,0.00019218,2]
[378018983,1754669475158,-3195.32,0.00019218,2]
[378018984,1754669475167,-3790.94,0.00019218,2]
[378018985,1754669475176,-400.0,0.00019218,2]
[378018986,1754669475186,-526.43,0.00019218,2]
[378018987,1754669475197,-410.16,0.00019218,2]
[378018988,1754669475206,-400.0,0.00019219,2]
[378018989,1754669475216,-158.09180931,0.00019219,2]
[378018990,1754669475225,-444.17,0.00019219,2]
[378018991,1754669475235,-400.0,0.00019219,2]
[378018992,1754669475244,-408.84,0.00019219,2]
[378018993,1754669475253,-151.0,0.00019219,2]
[378018994,1754669475263,-400.0,0.00019219,2]
[378018995,1754669475272,-400.0,0.00019219,2]
[378018996,1754669475282,-400.0,0.00019219,2]
[378018997,1754669475291,-400.0,0.00019219,2]
[378018998,1754669475300,-520.89,0.00019219,2]
[378018999,1754669475310,-400.0,0.00019219,2]
[378019000,1754669475319,-578.65,0.00019219,2]
[378019001,1754669475329,-400.0,0.00019219,2]
[378019002,1754669475338,-400.0,0.00019219,2]
[378019003,1754669475347,-400.0,0.00019219,2]
[378019004,1754669475356,-400.0,0.00019219,2]
[378019005,1754669475366,-438.64,0.00019219,2]
[378019006,1754669475375,-400.0,0.00019219,2]
[378019007,1754669475385,-272.03377831,0.00019219,2]
[378019008,1754669475394,-400.0,0.00019219,2]
[378019009,1754669475403,-431.02,0.00019219,2]
[378019010,1754669475412,-453.32,0.00019219,2]
[378019011,1754669475422,-528.12,0.00019219,2]
[378019012,1754669475431,-400.0,0.00019219,2]
[378019013,1754669475440,-400.0,0.00019219,2]
[378019014,1754669475450,-400.0,0.00019219,2]
[378019015,1754669475459,-414.55,0.00019219,2]
[378019016,1754669475469,-501.96,0.00019219,2]
[378019017,1754669475479,-502.35,0.00019219,2]
[378019018,1754669475488,-400.0,0.00019219,2]
[378019019,1754669475498,-400.0,0.00019219,2]
[378019020,1754669475508,-400.0,0.00019219,2]
[378019021,1754669475518,-400.0,0.00019219,2]
[378019022,1754669475528,-400.0,0.00019219,2]
[378019023,1754669475537,-537.65,0.00019219,2]
[378019024,1754669475547,-400.0,0.00019219,2]
[378019025,1754669475556,-436.33,0.00019219,2]
[378019026,1754669475565,-400.0,0.00019219,2]
[378019027,1754669475574,-579.55,0.00019219,2]
[378019028,1754669475583,-400.0,0.00019219,2]
[378019029,1754669475593,-400.0,0.00019219,2]
[378019030,1754669475602,-400.0,0.00019219,2]
[378019031,1754669475611,-400.0,0.00019219,2]
[378019032,1754669475621,-400.0,0.00019219,2]
[378019033,1754669475630,-400.0,0.00019219,2]
[378019034,1754669475640,-480.92669584,0.00019219,2]
[378019035,1754669475649,-400.0,0.00019219,2]
[378019036,1754669475659,-662.47,0.00019219,2]
[378019037,1754669475668,-458.85,0.00019219,2]
[378019038,1754669475678,-400.0,0.00019219,2]
[378019039,1754669475687,-400.0,0.00019219,2]
[378019040,1754669475701,-400.0,0.00019219,2]
[378019041,1754669475710,-400.0,0.00019219,2]
[378019042,1754669475719,-400.0,0.00019219,2]
[378019043,1754669475728,-400.0,0.00019219,2]
[378019044,1754669475739,-400.0,0.00019219,2]
[378019045,1754669475749,-433.69,0.00019219,2]
[378019046,1754669475758,-400.0,0.00019219,2]
[378019047,1754669475768,-400.0,0.00019219,2]
[378019048,1754669475779,-547.84,0.00019219,2]
[378019049,1754669475788,-470.40759288,0.00019219,2]
[378019050,1754669475797,-400.0,0.00019219,2]
[378019051,1754669475808,-400.0,0.00019219,2]
[378019052,1754669475819,-400.0,0.00019219,2]
[378019053,1754669475828,-1483.89,0.00019219,2]
[378019054,1754669475838,-452.85,0.00019219,2]
[378019055,1754669475847,-179.82530374,0.00019219,2]
[378019056,1754669475857,-518.62,0.00019219,2]
[378019057,1754669475866,-408.77,0.00019219,2]
[378019058,1754669475875,-400.0,0.00019219,2]
[378019059,1754669475885,-400.0,0.00019219,2]
[378019060,1754669475894,-419.4,0.00019219,2]
[378019061,1754669475903,-400.0,0.00019219,2]
[378019062,1754669475913,-400.0,0.00019219,2]
[378019063,1754669475923,-400.0,0.00019219,2]
[378019064,1754669475932,-525.06,0.00019219,2]
[378019065,1754669475942,-300.0,0.00019219,2]
[378019066,1754669475953,-400.0,0.00019219,2]
[378019067,1754669475962,-5082.64,0.00019219,2]
[378019068,1754669475972,-526.3,0.00019219,2]
[378019069,1754669475982,-493.26,0.00019219,2]
[378019070,1754669475992,-1574.43,0.00019219,2]
[378019071,1754669476001,-400.0,0.00019219,2]
[378019072,1754669476011,-470.32,0.00019219,2]
[378019073,1754669476020,-499.17,0.00019219,2]
[378019074,1754669476031,-400.0,0.00019219,2]
[378019075,1754669476041,-1383.82,0.00019219,2]
[378019076,1754669476050,-489.28,0.00019219,2]
[378019077,1754669476060,-865.71,0.00019219,2]
[378019078,1754669476071,-400.0,0.00019219,2]
[378019079,1754669476081,-763.19,0.00019219,2]